{"text_format":"2","workbook":"xlsx","n_sheets":1,"sheets":["Raeder_Reifen"],"not_rendered":{"charts":0,"images":0,"macros":0,"external_links":0,"defined_names":0,"comments":0,"pivot_tables":0},"unopened":[],"bounds":{"document_bytes":16777216,"sheet_cells":100000,"run_cost":"one","rows_first":2000,"rows_last":500,"rows_between":2000,"halvings":0,"cell_chars":16384,"cell_head_chars":4096},"cells_cut":0,"cells_raw":0,"read":"whole","date_system":"1900"}

{"sheet":"Raeder_Reifen","index":0,"n_rows":48,"n_cols":4,"rows_kept":48,"cut":false,"hidden":false,"merged":[]}
["Nummer","Bezeichnung","Part-Family","Gruppe 1"]
[369010,"LM-Kpl. Rad Sommer (1 Stueck)",{"$f":"CONCATENATE(A2,\" - \",B2)","v":"369010 - LM-Kpl. Rad Sommer (1 Stueck)"},"Komplett-Räder"]
[369011,"LM-Kpl. Radsatz Sommer",{"$f":"CONCATENATE(A3,\" - \",B3)","v":"369011 - LM-Kpl. Radsatz Sommer"},"Komplett-Räder"]
[369012,"LM-Kpl. Rad Winter","369012 - LM-Kpl. Rad Winter","Komplett-Räder"]
[369014,"LM-Kpl. Notrad","369014 - LM-Kpl. Notrad","Notrad"]
[369016,"LM-Kpl. Rad Sommer - BMW Welt","369016 - LM-Kpl. Rad Sommer - BMW Welt","Komplett-Räder"]
[369021,"Stahl-Kpl. Rad Sommer","369021 - Stahl-Kpl. Rad Sommer","Komplett-Räder"]
[369022,"Stahl-Kpl. Rad Winter","369022 - Stahl-Kpl. Rad Winter","Komplett-Räder"]
[369024,"Stahl-Kpl. Notrad","369024 - Stahl-Kpl. Notrad","Notrad"]
[369041,"Sommerreifen","369041 - Sommerreifen","Reifen"]
[369042,"Winterreifen","369042 - Winterreifen","Reifen"]
[369054,"Schneeketten","369054 - Schneeketten","Schneeketten"]
[369055,"Nabenabdeckungen","369055 - Nabenabdeckungen","Schrauben/Abdeckungen"]
[369056,"Radkappen","369056 - Radkappen","Schrauben/Abdeckungen"]
[369058,"Ventilkappen","369058 - Ventilkappen","Schrauben/Abdeckungen"]
[369059,"Radschraubensicherung","369059 - Radschraubensicherung","Schrauben/Abdeckungen"]
[369071,"LM-Scheibenrad","369071 - LM-Scheibenrad","Felgen"]
["36907111","LM-Scheibenrad Standard","36907111 - LM-Scheibenrad Standard","Felgen"]
[36907112,"LM-Scheibenrad Flow Forming","36907112 - LM-Scheibenrad Flow Forming","Felgen"]
[36907113,"LM-Scheibenrad geschmiedet","36907113 - LM-Scheibenrad geschmiedet","Felgen"]
[36907114,"LM-Scheibenrad 2-teilig","36907114 - LM-Scheibenrad 2-teilig","Felgen"]
[36907115,"Carbon-Scheibenrad","36907115 - Carbon-Scheibenrad","Felgen"]
[369072,"Stahl-Scheibenrad","369072 - Stahl-Scheibenrad","Felgen"]
[369076,"LM-Scheibenrad für Notrad","369076 - LM-Scheibenrad für Notrad","Felgen"]
[369077,"Stahl-Scheibenrad für Notrad","369077 - Stahl-Scheibenrad für Notrad","Felgen"]
["GBWR","Gebrauchte Räder","GBWR - Gebrauchte Räder","Gebrauchte Räder"]
["854510","Sommerreifen ohne Runflat, sternmarkiert","854510 - Sommerreifen ohne Runflat, sternmarkiert","Reifen"]
["854515","Sommerreifen mit Runflat, sternmarkiert","854515 - Sommerreifen mit Runflat, sternmarkiert","Reifen"]
["854520","Winterreifen ohne Runflat, sternmarkiert","854520 - Winterreifen ohne Runflat, sternmarkiert","Reifen"]
["854525","Winterreifen mit Runflat, sternmarkiert","854525 - Winterreifen mit Runflat, sternmarkiert","Reifen"]
["854530","All-Season Reifen, sternmarkiert","854530 - All-Season Reifen, sternmarkiert","Reifen"]
["854535","Winterreifen mit Spikes, *markiert","854535 - Winterreifen mit Spikes, *markiert","Reifen"]
["854540","Winterreifen Soft Comp.*markiert","854540 - Winterreifen Soft Comp.*markiert","Reifen"]
["855010","Sommerreifen ohne Runflat,*markiert lok","855010 - Sommerreifen ohne Runflat,*markiert lok","Reifen"]
["855015","Sommerreifen mit Runflat,*markiert lok","855015 - Sommerreifen mit Runflat,*markiert lok","Reifen"]
["855020","Winterreifen ohne Runflat,*markiert lok","855020 - Winterreifen ohne Runflat,*markiert lok","Reifen"]
["855025","Winterreifen mit Runflat,*markiert lok","855025 - Winterreifen mit Runflat,*markiert lok","Reifen"]
["855030","All-Season Reifen,*markiert lok","855030 - All-Season Reifen,*markiert lok","Reifen"]
["855035","Winterreifen mit Spikes, *markiert","855035 - Winterreifen mit Spikes, *markiert","Reifen"]
["855040","Winterreifen Soft Comp.*markiert","855040 - Winterreifen Soft Comp.*markiert","Reifen"]
["855510","Sommerreifen ohne Runflat,nicht*markiert","855510 - Sommerreifen ohne Runflat,nicht*markiert","Reifen"]
["855515","Sommerreifen mit Runflat nicht*markiert","855515 - Sommerreifen mit Runflat nicht*markiert","Reifen"]
["855520","Winterreifen ohne RSC, nicht*markiert","855520 - Winterreifen ohne RSC, nicht*markiert","Reifen"]
["855525","Winterreifen mit RSC, nicht*markiert","855525 - Winterreifen mit RSC, nicht*markiert","Reifen"]
["855530","All-Season Reifen, nicht sternmarkiert","855530 - All-Season Reifen, nicht sternmarkiert","Reifen"]
["855535","Winterreifen mit Spikes,nicht*markiert","855535 - Winterreifen mit Spikes,nicht*markiert","Reifen"]
["855540","Winterreifen Soft Comp.nicht*markiert","855540 - Winterreifen Soft Comp.nicht*markiert","Reifen"]
["Reifen fremd","Reifen fremd","Reifen fremd","Reifen"]